[Event "UKR-ch Semifinal 2018"]
[Site "Omelnyk"]
[Date "2018.10.28"]
[Round "3.5"]
[White "Basko, Bogdan"]
[Black "Neverov, Valeriy"]
[Result "0-1"]
[WhiteElo "2199"]
[BlackElo "2488"]
[Annotator "RC"]
[PlyCount "68"]
[EventDate "2018.11.26"]
[EventType "tourn"]
[EventCountry "UKR"]
[TimeControl "40/5400+30:1800+30"]
[WhiteClock "0:02:04"]
[BlackClock "0:00:57"]

1. d4 {[%emt 0:00:00]} Nf6 {[%emt 0:00:00]} 2. c4 {[%emt 0:00:00]} g6 {[%emt 0:03:07]} 3. Nc3 {[%emt 0:00:00]} Bg7 {[%emt 0:00:04]} 4. e4 {[%emt 0:00:04]} d6 {[%emt 0:00:04]} 5. f4 {[%emt 0:00:11]} c5 {[%emt 0:02:21]} 6. d5 {[%emt 0:00:21]} e6 {[%emt 0:01:10]} 7. Nf3 {[%emt 0:02:56]} exd5 {[%emt 0:00:23]} 8. cxd5 {[%emt 0:00:09]} O-O {[%emt 0:00:42]} 9. Be2 {[%emt 0:00:06]} Bg4 {[%emt 0:00:07]} 10. O-O {[%emt 0:00:58]} Nbd7 {[%emt 0:02:00]} 11. h3 {[%emt 0:02:34]} Bxf3 {[%emt 0:01:15]} 12. Bxf3 {[%emt 0:00:07]} a6 {[%emt 0:02:31]} 13. a4 {[%emt 0:02:08]} Rb8 {[%emt 0:00:14]} 14. Be3 {[%emt 0:15:32]} Ne8 {[%emt 0:02:41]} 15. Qd3 {[%emt 0:09:05]} Nc7 {[%emt 0:02:56]} 16. a5 {[%emt 0:07:57]} b5 {[%emt 0:14:22]} 17. axb6 {[%emt 0:03:10]} Rxb6 {[%emt 0:00:06]} 18. Ra2 {[%emt 0:03:14]} Qb8 {[%emt 0:05:26]} 19. Bg4 {[%emt 0:17:00]} Rd8 {[%emt 0:06:30]} 20. e5 {[%emt 0:04:02]} dxe5 {[%emt 0:02:58]} 21. Bxd7 {[%emt 0:06:47]} Rxd7 {[%emt 0:01:00]} 22. Bxc5 {[%emt 0:00:08]} Rb3 {[%emt 0:01:11]} 23. Qc4 {[%emt 0:09:13]} exf4 {[%emt 0:11:51]} 24. d6 {[%emt 0:06:19]} Ne6 {[%emt 0:02:42]} 25. Rxa6 {[%emt 0:00:37]} Rxb2 {[%emt 0:07:05]} 26. Nd5 {[%emt 0:04:30]} Rd2 {[%emt 0:16:00]} 27. Ba3 {[%emt 0:04:01]} Qb7 {[%emt 0:05:08]} 28. Rc6 {[%emt 0:01:08]} h6 {[%emt 0:00:15]} 29. Ne7+ {[%emt 0:01:37]} Kh7 {[%emt 0:00:51]} 30. Kh1 {[%emt 0:00:35]} Nd8 {[%emt 0:07:16]} 31. Bc1 {[%emt 0:00:27]} Rd4 {[%emt 0:00:37]} 32. Qa6 {[%emt 0:00:32]} Nxc6 {[%emt 0:00:30]} 33. Qxc6 {[%emt 0:00:29]} Qxc6 {[%emt 0:01:28]} 34. Nxc6 {[%emt 0:00:06]} R4xd6 {[%emt 0:00:05]} 0-1

[Event "UKR-ch Semifinal 2018"]
[Site "Omelnyk"]
[Date "2018.10.28"]
[Round "3.8"]
[White "Frolov, Artur"]
[Black "Lisnyak, Vladislav"]
[Result "1/2-1/2"]
[WhiteElo "2425"]
[BlackElo "2263"]
[Annotator "RC"]
[PlyCount "64"]
[EventDate "2018.11.26"]
[EventType "tourn"]
[EventCountry "UKR"]
[TimeControl "40/5400+30:1800+30"]
[WhiteClock "0:05:04"]
[BlackClock "0:10:26"]

1. c4 {[%emt 0:00:00]} e6 {[%emt 0:00:00]} 2. d4 {[%emt 0:00:00]} Nf6 {[%emt 0:00:00]} 3. Nf3 {[%emt 0:00:34]} d5 {[%emt 0:00:00]} 4. Nc3 {[%emt 0:00:30]} Be7 {[%emt 0:02:28]} 5. Bg5 {[%emt 0:00:49]} Nbd7 {[%emt 0:03:50]} 6. e3 {[%emt 0:00:07]} O-O {[%emt 0:04:11]} 7. Rc1 {[%emt 0:00:23]} c6 {[%emt 0:11:17]} 8. cxd5 {[%emt 0:01:29]} exd5 {[%emt 0:06:38]} 9. Bd3 {[%emt 0:00:55]} Re8 {[%emt 0:00:24]} 10. O-O {[%emt 0:00:17]} Nf8 {[%emt 0:00:54]} 11. Ne5 {[%emt 0:05:20]} N6d7 {[%emt 0:08:39]} 12. Bxe7 {[%emt 0:00:34]} Qxe7 {[%emt 0:01:01]} 13. Nxd7 {[%emt 0:02:24]} Bxd7 {[%emt 0:02:21]} 14. a3 {[%emt 0:00:25]} Qg5 {[%emt 0:06:57]} 15. b4 {[%emt 0:11:48]} Bg4 {[%emt 0:25:10]} 16. Be2 {[%emt 0:05:09]} f5 {[%emt 0:00:41]} 17. g3 {[%emt 0:24:39]} Ng6 {[%emt 0:06:05]} 18. Bxg4 {[%emt 0:01:58]} fxg4 {[%emt 0:00:27]} 19. b5 {[%emt 0:01:56]} Re6 {[%emt 0:00:24]} 20. bxc6 {[%emt 0:08:03]} bxc6 {[%emt 0:00:16]} 21. Ne2 {[%emt 0:03:08]} Rf8 {[%emt 0:01:13]} 22. Rc3 {[%emt 0:01:57]} Nh4 {[%emt 0:04:35]} 23. gxh4 {[%emt 0:13:44]} Qxh4 {[%emt 0:00:08]} 24. e4 {[%emt 0:01:59]} Rh6 {[%emt 0:07:59]} 25. h3 {[%emt 0:00:11]} Rf3 {[%emt 0:00:47]} 26. Qb3 {[%emt 0:00:45]} Qxh3 {[%emt 0:01:34]} 27. Qb8+ {[%emt 0:01:00]} Kf7 {[%emt 0:00:03]} 28. Qxa7+ {[%emt 0:03:23]} Ke8 {[%emt 0:00:46]} 29. Qb8+ {[%emt 0:00:06]} Kd7 {[%emt 0:01:06]} 30. Qb7+ {[%emt 0:00:06]} Kd8 {[%emt 0:00:30]} 31. Qb6+ {[%emt 0:01:12]} Kd7 {[%emt 0:00:27]} 32. Qb7+ {[%emt 0:00:43]} Kd8 {[%emt 0:00:05]} 1/2-1/2